fUSD/lending_fUSD_20240420
["ID","MTS","AMOUNT","RATE_DAILY","PERIOD"]
[323028772,1713603063397,-500.0,0.00015616,2]
[323028773,1713603063408,-770.49,0.00015616,2]
[323028774,1713603063417,-500.0,0.00015616,2]
[323028775,1713603063428,-1039.74,0.00015616,2]
[323028776,1713603063437,-500.0,0.00015616,2]
[323028777,1713603063448,-500.0,0.00015616,2]
[323028778,1713603063458,-994.14,0.00015616,2]
[323028779,1713603063468,-500.0,0.00015616,2]
[323028780,1713603063477,-2012.69,0.00015616,2]
[323028781,1713603063487,-1532.32,0.00015616,2]
[323028782,1713603063497,-717.94,0.00015616,2]
[323028783,1713603063507,-2688.18,0.00015616,2]
[323028784,1713603063517,-1650.75,0.00015616,2]
[323028785,1713603063528,-500.0,0.00015616,2]
[323028786,1713603063537,-3451.31,0.00015616,2]
[323028787,1713603063871,-500.0,0.00015616,2]
[323028788,1713603063880,-500.0,0.00015616,2]
[323028789,1713603063890,-531.68,0.00015616,2]
[323028790,1713603063899,-1096.49,0.00015616,2]
[323028791,1713603063908,-1277.947325,0.00015616,2]
[323028792,1713603063918,-1277.947325,0.00015616,2]
[323028793,1713603063927,-1279.74,0.00015616,2]
[323028794,1713603063937,-4039.72,0.00015616,2]
[323028795,1713603063946,-4596.05,0.00015616,2]
[323028796,1713603063955,-1358.81,0.00015616,2]
[323028797,1713603063966,-500.0,0.00015616,2]
[323028798,1713603063975,-1797.0,0.00015616,2]
[323028799,1713603063985,-2116.85,0.00015616,2]
[323028800,1713603063994,-1277.947325,0.00015616,2]
[323028801,1713603064005,-1277.947325,0.00015616,2]
[323028802,1713603064017,-500.0,0.00015616,2]
[323028803,1713603064026,-500.0,0.00015616,2]
[323028804,1713603064036,-703.48,0.00015616,2]
[323028805,1713603064045,-360.12180752,0.00015616,2]
[323028806,1713603064058,-500.0,0.00015616,2]
[323028807,1713603064067,-500.0,0.00015616,2]
[323028808,1713603064076,-526.74,0.00015616,2]
[323028809,1713603064086,-500.0,0.00015616,2]
[323028810,1713603064095,-2375.97,0.00015616,2]
[323028811,1713603064105,-500.0,0.00015616,2]
[323028812,1713603064115,-2218.96,0.00015616,2]
[323028813,1713603064125,-500.0,0.00015616,2]
[323028814,1713603064134,-500.0,0.00015616,2]
[323028815,1713603064144,-784.74,0.00015616,2]
[323028816,1713603064153,-500.0,0.00015616,2]
[323028817,1713603064162,-500.0,0.00015616,2]
[323028818,1713603064172,-1014.71,0.00015616,2]
[323028819,1713603064182,-1630.33,0.00015616,2]
[323028820,1713603064192,-1247.38,0.00015616,2]
[323028821,1713603064202,-500.0,0.00015616,2]
[323028822,1713603064212,-500.0,0.00015616,2]
[323028823,1713603064221,-958.78,0.00015616,2]
[323028824,1713603064231,-500.0,0.00015616,2]
[323028825,1713603064242,-500.0,0.00015616,2]
[323028826,1713603064252,-2521.72,0.00015616,2]
[323028827,1713603064262,-1339.05,0.00015616,2]
[323028828,1713603064272,-1407.0,0.00015616,2]
[323028829,1713603064282,-2386.42036129,0.00015616,2]
[323028830,1713603064749,-701.33067573,0.00015616,2]
[323028831,1713603064761,-1603.70896298,0.00015616,2]
[323028832,1713603064771,-1038.73604675,0.00015616,2]
[323028833,1713603064783,-1270.61982943,0.00015616,2]
[323028834,1713603064794,-1176.64081656,0.00015616,2]
[323028835,1713603067157,-703.49635767,0.00013408,2]
[323028836,1713603068124,-45.77217019,0.00013408,2]
[323028837,1713603068134,-212.93923644,0.00015067,2]
[323028838,1713603068143,-1292.65,0.00015068,2]
[323028839,1713603068153,-1292.65,0.00015342,2]
[323028840,1713603068162,-201.60330726,0.00015616,2]
[323028841,1713603068173,-151.0,0.00015616,2]
[323028842,1713603068182,-500.0,0.00015616,2]
[323028843,1713603068191,-534.55,0.00015616,2]
[323028844,1713603068201,-151.0,0.00015616,2]
[323028845,1713603068210,-1491.73,0.00015616,2]
[323028846,1713603068220,-500.0,0.00015616,2]
[323028847,1713603068230,-1243.52,0.00015616,2]
[323028848,1713603068239,-500.0,0.00015616,2]
[323028849,1713603068249,-588.56,0.00015616,2]
[323028850,1713603068259,-804.56,0.00015616,2]
[323028851,1713603068269,-1401.23,0.00015616,2]
[323028852,1713603068280,-500.0,0.00015616,2]
[323028853,1713603068290,-500.0,0.00015616,2]
[323028854,1713603068302,-2279.98,0.00015616,2]
[323028855,1713603068312,-168.991134,0.00015616,2]
[323028856,1713603068322,-2136.78,0.00015616,2]
[323028857,1713603068332,-500.0,0.00015616,2]
[323028858,1713603068342,-168.991134,0.00015616,2]
[323028859,1713603068352,-831.81,0.00015616,2]
[323028860,1713603068362,-1513.34,0.00015616,2]
[323028861,1713603068372,-500.0,0.00015616,2]
[323028862,1713603068382,-1560.15,0.00015616,2]
[323028863,1713603068393,-168.991134,0.00015616,2]
[323028864,1713603068403,-3010.04,0.00015616,2]
[323028865,1713603068413,-168.991134,0.00015616,2]
[323028866,1713603068423,-1163.05,0.00015616,2]
[323028867,1713603068433,-500.0,0.00015616,2]
[323028868,1713603068443,-786.99,0.00015616,2]
[323028869,1713603068453,-713.27,0.00015616,2]
[323028870,1713603068464,-1545.93,0.00015616,2]
[323028871,1713603068474,-581.0,0.00015616,2]
[323028872,1713603068485,-500.0,0.00015616,2]
[323028873,1713603068496,-1158.67,0.00015616,2]
[323028874,1713603068506,-787.02,0.00015616,2]
[323028875,1713603068518,-1103.02,0.00015616,2]
[323028876,1713603068530,-500.0,0.00015616,2]
[323028877,1713603068545,-500.0,0.00015616,2]
[323028878,1713603068560,-402.30526302,0.00015616,2]
[323028879,1713603068575,-631.31,0.00015616,2]
[323028880,1713603068590,-4670.67,0.00015616,2]
[323028881,1713603068603,-593.93,0.00015616,2]
[323028882,1713603068616,-1131.59,0.00015616,2]
[323028883,1713603068630,-1862.52,0.00015616,2]
[323028884,1713603068651,-500.0,0.00015616,2]
[323028885,1713603068665,-2183.12,0.00015616,2]
[323028886,1713603068681,-500.0,0.00015616,2]
[323028887,1713603068695,-500.0,0.00015616,2]
[323028888,1713603068710,-500.0,0.00015616,2]
[323028889,1713603068724,-767.7,0.00015616,2]
[323028890,1713603068738,-3118.09,0.00015616,2]
[323028891,1713603068751,-11644.69,0.00015616,2]
[323028892,1713603068762,-500.0,0.00015616,2]
[323028893,1713603068774,-1885.64,0.00015616,2]
[323028894,1713603068787,-500.0,0.00015616,2]
[323028895,1713603068801,-500.0,0.00015616,2]
[323028896,1713603068813,-500.0,0.00015616,2]
[323028897,1713603068825,-500.0,0.00015616,2]
[323028898,1713603068837,-505.11,0.00015616,2]
[323028899,1713603068850,-3525.39,0.00015616,2]
[323028900,1713603068863,-660.28,0.00015616,2]
[323028901,1713603068877,-500.0,0.00015616,2]
[323028902,1713603068889,-500.0,0.00015616,2]
[323028903,1713603068903,-903.89,0.00015616,2]
[323028904,1713603068915,-3085.38,0.00015616,2]
[323028905,1713603068930,-516.39,0.00015616,2]
[323028906,1713603068943,-500.0,0.00015616,2]
[323028907,1713603068956,-747.04,0.00015616,2]
[323028908,1713603068971,-500.0,0.00015616,2]
[323028909,1713603068987,-500.0,0.00015616,2]
[323028910,1713603069001,-3967.38,0.00015616,2]
[323028911,1713603069015,-500.0,0.00015616,2]
[323028912,1713603069029,-500.0,0.00015616,2]
[323028913,1713603069041,-500.0,0.00015616,2]
[323028914,1713603069058,-3663.8,0.00015616,2]
[323028915,1713603069072,-500.0,0.00015616,2]
[323028916,1713603069086,-500.0,0.00015616,2]
[323028917,1713603069100,-1353.66,0.00015616,2]
[323028918,1713603069115,-500.0,0.00015616,2]
[323028919,1713603069129,-522.24,0.00015616,2]
[323028920,1713603069144,-500.0,0.00015616,2]
[323028921,1713603069158,-1212.0,0.00015616,2]
[323028922,1713603069171,-2454.99,0.00015616,2]
[323028923,1713603069183,-1666.65,0.00015616,2]
[323028924,1713603069194,-1406.46,0.00015616,2]
[323028925,1713603069205,-500.0,0.00015616,2]
[323028926,1713603069215,-592.11,0.00015616,2]
[323028927,1713603069227,-5827.62,0.00015616,2]
[323028928,1713603069240,-500.0,0.00015616,2]
[323028929,1713603069253,-500.0,0.00015616,2]
[323028930,1713603069266,-633.0,0.00015616,2]
[323028931,1713603069278,-588.69,0.00015616,2]
[323028932,1713603069291,-228.417759,0.00015616,2]
[323028933,1713603069307,-551.87,0.00015616,2]
[323028934,1713603069319,-2964.79,0.00015616,2]
[323028935,1713603069331,-500.0,0.00015616,2]
[323028936,1713603069343,-500.0,0.00015616,2]
[323028937,1713603069356,-570.86,0.00015616,2]
[323028938,1713603069367,-1292.65,0.00015616,2]
[323028939,1713603069378,-538.0,0.00015617,2]
[323028940,1713603069389,-418.94,0.00015641,2]
[323028941,1713603069405,-806.378432,0.00015663,2]
[323028942,1713603069416,-7355.20936289,0.00015671,2]
[323028943,1713603069428,-1000.0,0.00015752,2]
[323028944,1713603069439,-482.0,0.000158,2]
[323028945,1713603069451,-1375.0,0.000158,2]
[323028946,1713603069463,-273.528,0.00015801,2]
[323028947,1713603069488,-174.85,0.00015831,2]
[323028948,1713603069500,-167.98,0.00015831,2]
[323028949,1713603069513,-1717.12430949,0.00015835,2]
[323028950,1713603069526,-7355.20936289,0.00015846,2]
[323028951,1713603069538,-806.378432,0.00015857,2]
[323028952,1713603069554,-219.6549133,0.0001587,2]
[323028953,1713603069566,-155.35835259,0.00015878,2]
[323028954,1713603069578,-155.0,0.00015878,2]
[323028955,1713603069590,-202.14318475,0.00015878,2]
[323028956,1713603069603,-155.0,0.00015878,2]
[323028957,1713603069616,-305.78057932,0.00015878,2]
[323028958,1713603069629,-155.0,0.00015878,2]
[323028959,1713603069642,-155.36956564,0.00015878,2]
[323028960,1713603069655,-203.73128511,0.00015878,2]
[323028961,1713603069668,-408.17868454,0.00015878,2]
[323028962,1713603069680,-155.31969641,0.00015878,2]
[323028963,1713603069692,-155.0,0.00015878,2]
[323028964,1713603069704,-161.99593208,0.00015878,2]
[323028965,1713603069717,-155.0,0.00015878,2]
[323028966,1713603069730,-236.55848009,0.00015878,2]
[323028967,1713603069743,-376.54513586,0.00015878,2]
[323028968,1713603069755,-155.3113581,0.00015878,2]
[323028969,1713603069767,-210.40439846,0.00015878,2]
[323028970,1713603069778,-155.30725384,0.00015878,2]
[323028971,1713603069791,-362.95538967,0.00015878,2]
[323028972,1713603069804,-408.40231817,0.00015878,2]
[323028973,1713603069815,-378.6624312,0.00015879,2]
[323028974,1713603069827,-155.0,0.00015879,2]
[323028975,1713603069839,-343.01364445,0.00015879,2]
[323028976,1713603069851,-705.82181173,0.00015879,2]
[323028977,1713603069863,-5842.87653255,0.00015879,2]
[323028978,1713603069875,-30988.98473627,0.0001588,2]
[323028979,1713603069892,-815.54788774,0.0001588,2]
[323028980,1713603069917,-4265.17455051,0.0001588,2]
[323028981,1713603069931,-255.564,0.0001588,2]
[323028982,1713603069945,-600.0,0.0001588,2]
[323028983,1713603069978,-873.88559492,0.0001588,2]
[323028984,1713603069992,-1453.6,0.0001588,2]
[323028985,1713603097909,1063.88354743,0.00011,2]
[323028986,1713603097932,2474.86648454,0.00011,2]
[323028987,1713603166852,865.896815,0.00011,2]
[323028989,1713603707816,202.43,0.00010227,2]
[323028990,1713603811896,277.0,0.00010884,2]
[323029025,1713604231474,-598.84416851,0.00011214,2]
[323029028,1713604231484,-598.84416851,0.00011214,2]
[323029031,1713604231493,-530.38232376,0.00011215,2]
[323029032,1713604231502,-532.65235782,0.00011217,2]
[323029033,1713604231512,-163.1531371,0.00011235,2]
[323029034,1713604231521,-163.15313708,0.00012397,2]
[323029035,1713604231530,-475.44,0.00012659,2]
[323029036,1713604231540,-250.0,0.00012659,2]
[323029037,1713604231549,-248.75,0.00012661,2]
[323029038,1713604231557,-454.85,0.00012676,2]
[323029039,1713604231566,-200.0,0.00012772,2]
[323029040,1713604231575,-1204.91,0.00012794,2]
[323029041,1713604231585,-167.69,0.00012801,2]
[323029042,1713604231594,-150.99,0.00012803,2]
[323029043,1713604231603,-1205.76,0.00012814,2]
[323029044,1713604231612,-545.15,0.00012851,2]
[323029045,1713604231622,-351.72,0.0001289,2]
[323029046,1713604231631,-351.72,0.00012926,2]
[323029047,1713604231641,-388.175957,0.00012957,2]
[323029048,1713604231650,-351.72,0.00012961,2]
[323029049,1713604231659,-351.72,0.00012996,2]
[323029050,1713604231668,-351.72,0.00013032,2]
[323029051,1713604231676,-351.72,0.00013067,2]
[323029052,1713604231685,-351.72,0.00013102,2]
[323029053,1713604231694,-351.72,0.00013138,2]
[323029054,1713604231704,-277.0,0.00013148,2]
[323029055,1713604231713,-351.72,0.00013173,2]
[323029056,1713604231722,-351.72,0.00013208,2]
[323029057,1713604231731,-499.99,0.0001323,2]
[323029058,1713604231740,-351.72,0.00013244,2]
[323029059,1713604231749,-351.72,0.00013279,2]
[323029060,1713604231758,-351.72,0.00013314,2]
[323029061,1713604231767,-305.07290764,0.00013318,2]
[323029062,1713604231789,-444.19562022,0.00013318,2]
[323029063,1713604231798,-351.72,0.0001335,2]
[323029064,1713604231806,-280.03933168,0.00013385,2]
[323029065,1713604231858,-71.68066832,0.00013385,2]
[323029067,1713604231867,-351.72,0.0001342,2]
[323029069,1713604231876,-500.0,0.00013425,2]
[323029070,1713604231885,-351.72,0.00013456,2]
[323029071,1713604231894,-351.72,0.00013491,2]
[323029072,1713604231904,-351.72,0.00013526,2]
[323029073,1713604231913,-163.15313708,0.0001356,2]
[323029074,1713604231922,-351.72,0.00013562,2]
[323029075,1713604231931,-638.33,0.00013661,2]
[323029076,1713604231940,-638.33,0.00013665,2]
[323029077,1713604231950,-638.33,0.00013669,2]
[323029078,1713604231959,-638.33,0.00013672,2]
[323029079,1713604231968,-638.33,0.00013676,2]
[323029080,1713604231978,-638.33,0.00013679,2]
[323029081,1713604231987,-638.33,0.00013683,2]
[323029082,1713604231998,-638.33,0.00013687,2]
[323029083,1713604232010,-276.36146658,0.0001369,2]
[323029084,1713604232022,-361.96853342,0.0001369,2]
[323029085,1713604232031,-638.33,0.00013694,2]
[323029086,1713604232040,-638.33,0.00013697,2]
[323029087,1713604232050,-200.0,0.00013699,2]
[323029088,1713604232059,-500.0,0.00013699,2]
[323029089,1713604232068,-229.09,0.00013699,2]
[323029090,1713604232078,-151.65,0.00013699,2]
[323029091,1713604232088,-638.33,0.00013701,2]
[323029092,1713604232098,-638.33,0.00013705,2]
[323029093,1713604232107,-638.33,0.00013708,2]
[323029094,1713604232116,-269.10922865,0.00013712,2]
[323029095,1713604232127,-369.22077135,0.00013712,2]
[323029096,1713604232137,-638.33,0.00013715,2]
[323029097,1713604232147,-638.33,0.00013719,2]
[323029098,1713604232156,-638.33,0.00013723,2]
[323029099,1713604232166,-638.33,0.00013726,2]
[323029100,1713604232175,-638.33,0.0001373,2]
[323029101,1713604232184,-454.85,0.00014261,2]
[323029102,1713604232194,-150.78,0.00014311,2]
[323029103,1713604232202,-300.0,0.0001438,2]
[323029104,1713604232211,-151.65,0.00014384,2]
[323029105,1713604232220,-545.15,0.00014457,2]
[323029106,1713604232230,-167.29,0.00014669,2]
[323029107,1713604232239,-601.7962,0.00014699,2]
[323029108,1713604232248,-231.5886,0.00014699,2]
[323029109,1713604232257,-29861.9285,0.00014699,2]
[323029110,1713604232267,-1000.0,0.00014699,2]
[323029111,1713604232276,-2500.0,0.00014699,2]
[323029112,1713604232285,-500.0,0.000147,2]
[323029113,1713604232294,-163.15313708,0.00014722,2]
[323029114,1713604232303,-1115.17562202,0.00014733,2]
[323029115,1713604232313,-588.2900361,0.00014785,2]
[323029116,1713604232322,-178.11,0.00014789,3]
[323029117,1713604232333,-426.62808707,0.00014791,2]
[323029118,1713604232342,-265.12092461,0.00014798,2]
[323029119,1713604232352,-305.12478277,0.00014798,2]
[323029120,1713604232361,-155.24176049,0.00014798,2]
[323029121,1713604232370,-207.62234787,0.00014798,2]
[323029122,1713604232379,-705.57830306,0.00014798,2]
[323029123,1713604232388,-683.27995213,0.00014798,2]
[323029124,1713604232398,-155.52981524,0.00014798,2]
[323029125,1713604232408,-1298.24681142,0.00014798,2]
[323029126,1713604232417,-2176.78118277,0.00014798,2]
[323029127,1713604232426,-5537.37772796,0.00014798,2]
[323029128,1713604232435,-168.28268646,0.00014798,2]
[323029129,1713604232445,-155.0,0.00014798,2]
[323029130,1713604232454,-215.75624408,0.00014798,2]
[323029131,1713604232463,-455.80655655,0.00014798,2]
[323029132,1713604232472,-155.0,0.00014798,2]
[323029133,1713604232482,-2220.70838727,0.00014798,2]
[323029134,1713604232491,-156.34978478,0.00014798,2]
[323029135,1713604232500,-376.21388074,0.00014798,2]
[323029136,1713604232509,-1127.91805791,0.00014798,2]
[323029137,1713604232518,-1240.66300341,0.00014798,2]
[323029138,1713604232528,-243.42134669,0.00014798,2]
[323029139,1713604232539,-210.24561399,0.00014798,2]
[323029140,1713604232549,-155.0,0.00014798,2]
[323029141,1713604232558,-199.97342672,0.00014798,2]
[323029142,1713604232567,-155.59960337,0.00014798,2]
[323029143,1713604232578,-409.07594597,0.00014798,2]
[323029144,1713604232587,-1775.09187772,0.00014798,2]
[323029145,1713604232596,-226.12853944,0.00014798,2]
[323029146,1713604232606,-155.39874887,0.00014798,2]
[323029147,1713604232615,-211.64877603,0.00014798,2]
[323029148,1713604232624,-4325.35936799,0.00014798,2]
[323029149,1713604232633,-1992.21788626,0.00014798,2]
[323029150,1713604232642,-1030.55617641,0.00014798,2]
[323029151,1713604232652,-325.27031537,0.00014798,2]
[323029152,1713604232661,-157.04510012,0.00014798,2]
[323029153,1713604232670,-192.57993313,0.00014798,2]
[323029154,1713604232679,-477.67528665,0.00014798,2]
[323029155,1713604232689,-342.76260499,0.00014798,2]
[323029156,1713604232698,-949.70676402,0.00014798,2]
[323029157,1713604232707,-283.31314188,0.00014798,2]
[323029158,1713604232716,-251.44790458,0.00014799,2]
[323029159,1713604232726,-47589.88099709,0.00014799,2]
[323029160,1713604232738,-562.34159793,0.00014799,2]
[323029161,1713604232781,-2657.2665935,0.00014799,2]
[323029162,1713604232817,-737.77704635,0.00014799,2]
[323029163,1713604232849,-873.58,0.00014799,2]
[323029164,1713604232860,-9240.55695824,0.00014799,2]
[323029165,1713604232872,-313.94261921,0.00014799,2]
[323029166,1713604232890,-259.94301548,0.00014799,2]
[323029167,1713604232901,-1604.30848172,0.00014799,2]
[323029168,1713604232932,-255.34,0.00014799,2]
[323029169,1713604232944,-1135.6632457,0.00014799,2]
[323029172,1713604237531,-539.09685201,0.00011213,2]
[323029173,1713604237541,-291.97814799,0.00014799,2]
[323029174,1713604237591,-47699.11584418,0.00014799,2]
[323029175,1713604237600,-1000.0,0.000148,2]
[323029176,1713604237609,-222405.28766569,0.000148,2]
[323029177,1713604237641,-3635.759042,0.000148,2]
[323029178,1713604237652,-2143.77423767,0.000148,2]
[323029179,1713604237696,-562.99630196,0.000148,2]
[323029180,1713604237758,-1405.04125299,0.000148,2]
[323029181,1713604237814,-311.184893,0.000148,2]
[323029182,1713604237825,-1368.56705426,0.000148,2]
[323029183,1713604237838,-819.390416,0.000148,2]
[323029184,1713604237850,-12347.99913643,0.000148,2]
[323029185,1713604237859,-886.56812948,0.00014833,2]
[323029186,1713604237869,-1115.17562202,0.000149,2]
[323029187,1713604237879,-187.08701924,0.000149,2]
[323029188,1713604237888,-1218.57644027,0.000149,2]
[323029189,1713604237899,-2552.76923629,0.000149,2]
[323029190,1713604237909,-782.21814483,0.000149,2]
[323029191,1713604237919,-6646.01324421,0.000149,2]
[323029192,1713604237928,-192.13859571,0.000149,2]
[323029193,1713604237937,-383.22825436,0.000149,2]
[323029194,1713604237946,-7500.0,0.000149,2]
[323029195,1713604237956,-443.0,0.00014909,2]
[323029196,1713604237965,-1140.0,0.00014909,2]
[323029197,1713604237974,-1000.0,0.00014968,2]
[323029199,1713604237984,-59521.14649901,0.0001498,2]
[323029200,1713604237995,-11940.0,0.0001498,2]
[323029201,1713604238029,-769.96443153,0.0001498,2]
[323029202,1713604238041,-17393.3091694,0.0001498,2]
[323029203,1713604238051,-155.47526339,0.0001498,2]
[323029204,1713604238060,-163.5,0.0001498,2]
[323029205,1713604238069,-94624.46719588,0.0001499,2]
[323029206,1713604238080,-163.5,0.0001499,2]
[323029207,1713604238090,-163.5,0.0001499,2]
[323029208,1713604238100,-63699.16431787,0.00015,3]
[323029212,1713604239588,-278.8050296,0.00015,3]
[323029213,1713604239603,-1824.0722,0.00015,3]
[323029214,1713604239801,-539.06283141,0.00015,3]
[323029215,1713604239913,-27218.16783349,0.00015,3]
[323029216,1713604239922,-153931.13581589,0.00015,2]
[323029217,1713604240222,-1108787.61240607,0.00015,4]
[323029218,1713604240234,-119595.44883948,0.00015,2]
[323029219,1713604240246,-5000.0,0.00015,2]
[323029220,1713604240255,-618.90797922,0.00015,2]
[323029221,1713604240264,-201.6309998,0.00015,2]
[323029222,1713604240274,-200.0,0.00015,2]
[323029223,1713604240283,-50843.3292875,0.00015,2]
[323029262,1713604242844,-214.28,0.0001499,3]
[323029263,1713604242854,-423.8437,0.00015,2]
[323029264,1713604242899,-63570.97838202,0.00015,2]
[323029265,1713604242958,-161479.76890152,0.00015,2]
[323029266,1713604245629,-200.35617873,0.000149,2]
[323029267,1713604245639,-273.32944117,0.000149,2]
[323029268,1713604245649,-30516.3143798,0.00015,2]
[323029269,1713604245661,-761.63798167,0.00015,2]
[323029270,1713604245684,-5371.39743731,0.00015,2]
[323029271,1713604245790,-1018.94441301,0.00015,2]
[323029272,1713604245952,-2603.69489338,0.00015,2]
[323029273,1713604245964,-577.99131662,0.00015,2]
[323029274,1713604247034,174.937148,0.00010884,2]
[323029275,1713604305173,671.4635,0.00011114,2]
[323029279,1713604893146,301.66,0.00010859,2]
[323029337,1713605401282,286.57,0.00010757,2]
[323029349,1713605431669,-218.50856902,0.00011973,2]
[323029350,1713605431679,-709.78541386,0.00011973,2]
[323029351,1713605431688,-313.67030526,0.00011973,2]
[323029352,1713605431697,-155.0,0.00011974,2]
[323029353,1713605431706,-297.78898796,0.00011975,2]
[323029354,1713605431943,-363.64538964,0.00012071,2]
[323029355,1713605432019,-609.66850598,0.00012084,2]
[323029356,1713605432031,-297.78898795,0.00012298,2]
[323029357,1713605432040,-297.78898795,0.00012621,2]
[323029358,1713605432051,-250.0,0.00012628,2]
[323029359,1713605432060,-155.0,0.00012647,2]
[323029361,1713605432070,-150.99,0.00012647,2]
[323029363,1713605432079,-150.0,0.00012649,2]
[323029365,1713605432088,-23344.54514133,0.0001265,2]
[323029367,1713605432098,-654.64,0.00012651,2]
[323029368,1713605432107,-150.99,0.00012651,2]
[323029369,1713605432117,-1067.17,0.00012678,2]
[323029370,1713605432126,-272.91,0.00012723,2]
[323029371,1713605432135,-200.0,0.00012745,2]
[323029372,1713605432145,-169.26,0.00012765,2]
[323029373,1713605432154,-499.99,0.00012774,2]
[323029374,1713605432163,-600.01467908,0.00013,2]
[323029375,1713605432173,-1000.0,0.00013,2]
[323029376,1713605432182,-286.57,0.0001302,2]
[323029377,1713605432192,-192.31,0.00013032,2]
[323029379,1713605432202,-169.26,0.00013097,2]
[323029381,1713605432212,-727.09,0.00013184,2]
[323029383,1713605432222,-155.23150938,0.0001323,2]
[323029384,1713605432231,-500.0,0.00013425,2]
[323029385,1713605432241,-169.26,0.0001343,2]
[323029386,1713605432250,-155.23150938,0.00013458,2]
[323029387,1713605432261,-155.23150938,0.00013686,2]
[323029388,1713605432272,-5907.087,0.00013686,2]
[323029389,1713605432281,-200.0,0.00013699,2]
[323029390,1713605432291,-219.31,0.00013699,2]
[323029391,1713605432301,-677.36,0.00013699,2]
[323029392,1713605432311,-500.0,0.00013699,2]
[323029393,1713605432322,-151.65,0.00013699,2]
[323029394,1713605432332,-198.87,0.00013911,2]
[323029395,1713605432342,-155.23150938,0.00013914,2]
[323029396,1713605432352,-210.0,0.00013914,2]
[323029397,1713605432364,-198.87,0.00013915,2]
[323029398,1713605432374,-198.87,0.00013919,2]
[323029399,1713605432385,-198.87,0.00013923,2]
[323029400,1713605432395,-198.87,0.00013926,2]
[323029401,1713605432405,-198.87,0.0001393,2]
[323029402,1713605432414,-198.87,0.00013934,2]
[323029403,1713605432424,-198.87,0.00013937,2]
[323029404,1713605432434,-198.87,0.00013941,2]
[323029405,1713605432445,-144.27515636,0.00013945,2]
[323029406,1713605432481,-54.59484364,0.00013945,2]
[323029407,1713605432490,-198.87,0.00013948,2]
[323029408,1713605432501,-198.87,0.00013952,2]
[323029409,1713605432512,-198.87,0.00013956,2]
[323029410,1713605432522,-198.87,0.00013959,2]
[323029411,1713605432532,-198.87,0.00013963,2]
[323029412,1713605432542,-198.87,0.00013967,2]
[323029413,1713605432552,-198.87,0.0001397,2]
[323029414,1713605432564,-198.87,0.00013974,2]
[323029415,1713605432574,-198.87,0.00013978,2]
[323029416,1713605432583,-198.87,0.00013981,2]
[323029417,1713605432592,-2250.0,0.00014,2]
[323029418,1713605432602,-886.66602336,0.00014,2]
[323029419,1713605432615,-113.33397664,0.00014,2]
[323029420,1713605432624,-294.18,0.00014137,2]
[323029421,1713605432634,-155.23150938,0.00014142,2]
[323029422,1713605432644,-32.01283062,0.00014314,2]
[323029423,1713605432656,-240.89716938,0.00014314,2]
[323029424,1713605432666,-155.23150938,0.0001437,2]
[323029425,1713605432676,-292.68940629,0.00014498,2]
[323029426,1713605432688,-2263.87064436,0.00014498,2]
[323029427,1713605432701,-1061.99719045,0.00014498,2]
[323029428,1713605432762,-62.8023589,0.00014498,2]
[323029429,1713605432773,-209.8975,0.00014498,2]
[323029430,1713605432782,-747.8542,0.00014498,2]
[323029431,1713605432793,-85.24090072,0.00014498,2]
[323029432,1713605432805,-865.60030812,0.00014498,2]
[323029433,1713605432818,-538.41443529,0.00014498,2]
[323029434,1713605432832,-386.24765587,0.00014498,2]